fUSD/lending_fUSD_20260509
["ID","MTS","AMOUNT","RATE_DAILY","PERIOD"]
[421894398,1778304661000,-3719.2818395,0.00018027,2]
[421894383,1778304661000,-500.0,0.00017364,2]
[421894386,1778304661000,-150.0,0.0001748,2]
[421894384,1778304661000,-500.0,0.00017364,2]
[421894382,1778304661000,-500.0,0.00017364,2]
[421894399,1778304661000,-3627.0,0.00018027,2]
[421894388,1778304661000,-500.0,0.00017638,2]
[421894387,1778304661000,-150.0,0.00017627,2]
[421894390,1778304661000,-932.0,0.00017638,2]
[421894385,1778304661000,-500.0,0.00017364,2]
[421894391,1778304661000,-359.45,0.0001771,2]
[421894392,1778304661000,-150.0,0.00017774,2]
[421894393,1778304661000,-500.0,0.00017912,2]
[421894395,1778304661000,-871.0,0.00017912,2]
[421894394,1778304661000,-500.0,0.00017912,2]
[421894417,1778304661000,-150.0,0.00018508,2]
[421894397,1778304661000,-214.67043008,0.00018,2]
[421894389,1778304661000,-500.0,0.00017638,2]
[421894426,1778304662000,-2200.0,0.000189,6]
[421894424,1778304662000,-150.0,0.00018802,2]
[421894420,1778304662000,-214.67043008,0.000187,2]
[421894423,1778304662000,-1700.0,0.000188,6]
[421894418,1778304662000,-2000.0,0.00018631,2]
[421894421,1778304662000,-283.616324,0.0001872,7]
[421894419,1778304662000,-150.0,0.00018655,2]
[421894425,1778304662000,-1123.87706065,0.00018817,2]
[421894422,1778304662000,-9777.74,0.0001872,2]
[421894428,1778304662000,-359.45,0.0001908,2]
[421894435,1778304662000,-544.0,0.00017,2]
[421894431,1778304662000,-191.50379649,0.00019101,2]
[421894432,1778304662000,-794709.05175319,0.00019102,2]
[421894433,1778304662000,-215319.58213157,0.00019102,2]
[421894430,1778304662000,-500.0,0.00019101,2]
[421894429,1778304662000,-150.0,0.00019096,2]
[421894438,1778304662000,-1138.69847624,0.00018027,2]
[421894434,1778304662000,-3539.0,0.00015027,2]
[421894436,1778304662000,-544.0,0.00017636,2]
[421894437,1778304662000,-1146.06712977,0.00018027,2]
[421894427,1778304662000,-150.0,0.00018949,2]
[421894439,1778304680000,-150.99,0.00013105,2]
[421894442,1778304785000,-150.0,0.00014795,2]
[421894443,1778304785000,-150.0,0.00015011,2]
[421894441,1778304785000,-300.0,0.00013698,2]
[421894440,1778304785000,232.99,9.099e-05,2]
[421894444,1778304786000,-270.0,0.00015011,2]
[421894446,1778304786000,-300.0,0.00015108,2]
[421894445,1778304786000,-30.0,0.00015108,2]
[421894450,1778304787000,-300.0,0.00013137,2]
[421894449,1778304787000,-300.0,0.00013137,2]
[421894447,1778304787000,-150.0,0.00012284,2]
[421894448,1778304787000,-150.0,0.00013137,2]
[421894452,1778304788000,-300.0,0.00013137,2]
[421894451,1778304788000,-300.0,0.00013137,2]
[421894453,1778304807000,-433.20972314,0.00013136,2]
[421894454,1778304819000,-5000.01,0.00013137,2]
[421894461,1778305437000,180.82,6.52e-05,2]
[421894473,1778305832000,-800.0,0.000129,4]
[421894464,1778305832000,-200.0,0.000127,4]
[421894465,1778305832000,-215.21040652,0.000127,2]
[421894466,1778305832000,-193.97,0.00012727,2]
[421894477,1778305832000,-4796.4,0.00012937,2]
[421894476,1778305832000,-673.90711308,0.00012937,2]
[421894469,1778305832000,-500.0,0.000128,4]
[421894475,1778305832000,-599.30213,0.00012937,2]
[421894467,1778305832000,-500.0,0.00012774,2]
[421894474,1778305832000,-93704.58983619,0.00012937,2]
[421894468,1778305832000,-220.50806861,0.00012774,2]
[421894470,1778305832000,-855.9,0.00012874,2]
[421894472,1778305832000,-163.31,0.00012874,2]
[421894471,1778305832000,-168.918,0.00012874,2]
[421894479,1778305832000,-1487.76297436,0.00012937,2]
[421894478,1778305832000,-323.23126217,0.00012937,2]
[421894499,1778305838000,-109187.40446534,0.00012937,2]
[421894501,1778305838000,-1030.30186262,0.00012937,2]
[421894498,1778305838000,-375.10199995,0.00012937,2]
[421894502,1778305838000,-27101.81642507,0.00012937,2]
[421894504,1778305838000,-380.52932165,0.00012937,2]
[421894500,1778305838000,-956.88623945,0.00012937,2]
[421894579,1778305840000,-7730.28970382,0.00012937,2]
[421894577,1778305840000,-3532.20722519,0.00012937,2]
[421894578,1778305840000,-752.99552532,0.00012937,2]
[421894576,1778305840000,-801.04957216,0.00012937,2]
[421894580,1778305841000,-69.8753599,0.00012937,2]
[421894592,1778305844000,-2590.96888089,0.00012937,2]
[421894591,1778305844000,-291.91598091,0.00012937,2]
[421894590,1778305844000,-255486.98507292,0.00012937,2]
[421894594,1778305846000,-7677.81569053,0.00012937,2]
[421894593,1778305846000,-509.0,0.00012937,2]
[421894595,1778305846000,-3698.89475303,0.00012937,2]
[421894596,1778305846000,-48704.71650335,0.00012937,2]
[421894598,1778305846000,-653.74439782,0.00012936,2]
[421894599,1778305846000,-2142.66086324,0.00012936,2]
[421894601,1778305846000,-281.85929294,0.00012937,2]
[421894600,1778305846000,-3605.90917407,0.00012937,2]
[421894602,1778305846000,-803.87793,0.00012937,2]
[421894597,1778305846000,-3682.04121702,0.00012937,2]
[421894609,1778306295000,232.94,6.204e-05,2]
[421894615,1778306921000,1861.22,0.0001,2]
[421894637,1778307032000,-8017.49,0.00011941,2]
[421894635,1778307032000,-191.10699279,0.00011701,2]
[421894640,1778307032000,-166.38,0.00012043,2]
[421894641,1778307032000,-191.10699279,0.00012104,2]
[421894642,1778307032000,-150.0,0.00012108,2]
[421894646,1778307032000,-3465.88569018,0.00012145,2]
[421894648,1778307032000,-150.0,0.00012203,2]
[421894643,1778307032000,-2645.87311164,0.00012145,2]
[421894660,1778307032000,-500.0,0.00012204,2]
[421894654,1778307032000,-500.0,0.00012204,2]
[421894658,1778307032000,-500.0,0.00012204,2]
[421894656,1778307032000,-500.0,0.00012204,2]
[421894652,1778307032000,-523.20356822,0.00012204,2]
[421894662,1778307032000,-500.0,0.00012204,2]
[421894664,1778307032000,-500.0,0.00012204,2]
[421894650,1778307032000,-500.0,0.00012204,2]
[421894630,1778307032000,-834.38,0.00011398,2]
[421894618,1778307032000,-975.375165,0.00011241,2]
[421894636,1778307032000,-1435.53,0.00011832,2]
[421894668,1778307032000,-500.0,0.00012204,2]
[421894619,1778307032000,-191.10699281,0.00011298,2]
[421894620,1778307032000,-157.96,0.00011315,2]
[421894621,1778307032000,-111.55784219,0.00011344,2]
[421894622,1778307032000,-138.44215781,0.00011344,2]
[421894623,1778307032000,-130.51344044,0.00011348,2]
[421894624,1778307032000,-713.98553414,0.00011348,2]
[421894633,1778307032000,-1397.77,0.00011606,2]
[421894626,1778307032000,-180.47305647,0.00011349,2]
[421894627,1778307032000,-816.39367816,0.00011349,2]
[421894638,1778307032000,-721.98,0.00011947,2]
[421894639,1778307032000,-500.0,0.00011992,2]
[421894628,1778307032000,-15753.12326537,0.00011349,2]
[421894631,1778307032000,-150.0,0.00011437,2]
[421894634,1778307032000,-10771.08,0.00011693,2]
[421894632,1778307032000,-2000.0,0.00011507,2]
[421894625,1778307032000,-355.50102542,0.00011348,2]
[421894670,1778307032000,-500.0,0.00012204,2]
[421894707,1778307032000,-500.0,0.00012204,2]
[421894666,1778307032000,-500.0,0.00012204,2]
[421894700,1778307032000,-500.0,0.00012204,2]
[421894701,1778307032000,-500.0,0.00012204,2]
[421894703,1778307032000,-500.0,0.00012204,2]
[421894713,1778307032000,-175.36642745,0.00012204,2]
[421894704,1778307032000,-500.0,0.00012204,2]
[421894702,1778307032000,-500.0,0.00012204,2]
[421894706,1778307032000,-500.0,0.00012204,2]
[421894705,1778307032000,-500.0,0.00012204,2]
[421894711,1778307032000,-500.0,0.00012204,2]
[421894708,1778307032000,-500.0,0.00012204,2]
[421894709,1778307032000,-500.0,0.00012204,2]
[421894712,1778307032000,-500.0,0.00012204,2]
[421894714,1778307032000,-500.0,0.00012204,2]
[421894716,1778307032000,-500.0,0.00012204,2]
[421894672,1778307032000,-500.0,0.00012204,2]
[421894698,1778307032000,-500.0,0.00012204,2]
[421894699,1778307032000,-500.0,0.00012204,2]
[421894710,1778307032000,-500.0,0.00012204,2]
[421894696,1778307032000,-500.0,0.00012204,2]
[421894674,1778307032000,-500.0,0.00012204,2]
[421894695,1778307032000,-500.0,0.00012204,2]
[421894676,1778307032000,-500.0,0.00012204,2]
[421894684,1778307032000,-500.0,0.00012204,2]
[421894678,1778307032000,-500.0,0.00012204,2]
[421894680,1778307032000,-500.0,0.00012204,2]
[421894682,1778307032000,-500.0,0.00012204,2]
[421894686,1778307032000,-500.0,0.00012204,2]
[421894715,1778307032000,-500.0,0.00012204,2]
[421894689,1778307032000,-500.0,0.00012204,2]
[421894688,1778307032000,-500.0,0.00012204,2]
[421894691,1778307032000,-500.0,0.00012204,2]
[421894694,1778307032000,-500.0,0.00012204,2]
[421894690,1778307032000,-500.0,0.00012204,2]
[421894692,1778307032000,-500.0,0.00012204,2]
[421894693,1778307032000,-500.0,0.00012204,2]
[421894697,1778307032000,-500.0,0.00012204,2]
[421894757,1778307033000,-500.0,0.00012433,2]
[421894755,1778307033000,-500.0,0.00012365,2]
[421894754,1778307033000,-721.98,0.00012245,2]
[421894751,1778307033000,-173.0,0.00012204,2]
[421894747,1778307033000,-500.0,0.00012204,2]
[421894750,1778307033000,-173.0,0.00012204,2]
[421894756,1778307033000,-250.0,0.00012365,2]
[421894752,1778307033000,-173.0,0.00012204,2]
[421894748,1778307033000,-470.0,0.00012204,2]
[421894745,1778307033000,-500.0,0.00012204,2]
[421894744,1778307033000,-500.0,0.00012204,2]
[421894749,1778307033000,-173.0,0.00012204,2]
[421894758,1778307033000,-230.38062833,0.00012474,2]
[421894762,1778307033000,-158.74,0.00012528,2]
[421894760,1778307033000,-500.0,0.00012478,2]
[421894773,1778307033000,-600.0,0.000129,4]
[421894761,1778307033000,-1680.0,0.00012483,2]
[421894759,1778307033000,-250.0,0.00012474,2]
[421894766,1778307033000,-157.96,0.00012729,2]
[421894765,1778307033000,-200.0,0.000127,4]
[421894767,1778307033000,-606.5595874,0.00012752,2]
[421894770,1778307033000,-33147.836,0.00012837,2]
[421894768,1778307033000,-400.0,0.000128,4]
[421894771,1778307033000,-721.98,0.00012843,2]
[421894774,1778307033000,-2544.6653,0.00012904,2]
[421894746,1778307033000,-500.0,0.00012204,2]
[421894763,1778307033000,-363.89,0.0001254,2]
[421894764,1778307033000,-721.98,0.00012544,2]
[421894728,1778307033000,-500.0,0.00012204,2]
[421894753,1778307033000,-223438.1,0.00012205,2]
[421894776,1778307033000,-170.13730629,0.00012938,2]
[421894726,1778307033000,-500.0,0.00012204,2]
[421894718,1778307033000,-500.0,0.00012204,2]
[421894717,1778307033000,-500.0,0.00012204,2]
[421894721,1778307033000,-500.0,0.00012204,2]
[421894719,1778307033000,-500.0,0.00012204,2]
[421894722,1778307033000,-500.0,0.00012204,2]
[421894720,1778307033000,-199.99999999,0.00012204,2]
[421894724,1778307033000,-500.0,0.00012204,2]
[421894725,1778307033000,-500.0,0.00012204,2]
[421894723,1778307033000,-500.0,0.00012204,2]
[421894727,1778307033000,-500.0,0.00012204,2]
[421894743,1778307033000,-500.0,0.00012204,2]
[421894729,1778307033000,-500.0,0.00012204,2]
[421894732,1778307033000,-500.0,0.00012204,2]
[421894735,1778307033000,-500.0,0.00012204,2]
[421894733,1778307033000,-500.0,0.00012204,2]
[421894731,1778307033000,-500.0,0.00012204,2]
[421894738,1778307033000,-500.0,0.00012204,2]
[421894737,1778307033000,-500.0,0.00012204,2]
[421894734,1778307033000,-500.0,0.00012204,2]
[421894736,1778307033000,-500.0,0.00012204,2]
[421894739,1778307033000,-500.0,0.00012204,2]
[421894741,1778307033000,-500.0,0.00012204,2]
[421894740,1778307033000,-500.0,0.00012204,2]
[421894742,1778307033000,-500.0,0.00012204,2]
[421894730,1778307033000,-500.0,0.00012204,2]
[421894775,1778307033000,-1001.66957048,0.00012935,2]
[421894808,1778307033000,-201.90636909,0.00013698,2]
[421894778,1778307033000,-500.0,0.00012938,2]
[421894807,1778307033000,-347.60802052,0.00013698,2]
[421894809,1778307033000,-500.0,0.00013698,2]
[421894810,1778307033000,-500.0,0.00013698,2]
[421894813,1778307033000,-500.0,0.00013698,2]
[421894811,1778307033000,-500.0,0.00013698,2]
[421894814,1778307033000,-500.0,0.00013698,2]
[421894812,1778307033000,-500.0,0.00013698,2]
[421894819,1778307033000,-45833.91491464,0.0001397,2]
[421894820,1778307033000,-12231.72675233,0.0001399,2]
[421894815,1778307033000,-166.81,0.00013699,2]
[421894818,1778307033000,-461.94485924,0.00013877,2]
[421894817,1778307033000,-2351.0,0.00013731,2]
[421894799,1778307033000,-2080.17592889,0.00013471,2]
[421894816,1778307033000,-200.0,0.00013699,2]
[421894822,1778307033000,-200.0,0.00014019,2]
[421894830,1778307033000,-166.81,0.00014384,2]
[421894823,1778307033000,-667.72689589,0.00014019,2]
[421894826,1778307033000,-157.96,0.00014144,2]
[421894828,1778307033000,-1582.0,0.0001436,2]
[421894825,1778307033000,-2645.87311155,0.00014118,2]
[421894824,1778307033000,-1500.0,0.00014068,2]
[421894829,1778307033000,-2000.0,0.00014383,2]
[421894832,1778307033000,-1505.74239376,0.00014616,2]
[421894831,1778307033000,-433.0,0.00014473,2]
[421894833,1778307033000,-3465.88569015,0.000147,2]
[421894772,1778307033000,-201.49244657,0.000129,2]
[421894821,1778307033000,-250.0,0.00014,2]
[421894806,1778307033000,-504.56234086,0.00013698,2]
[421894827,1778307033000,-495.10934298,0.00014307,2]
[421894805,1778307033000,-500.0,0.00013698,2]
[421894804,1778307033000,-500.0,0.00013698,2]
[421894769,1778307033000,-2000.0,0.00012837,2]
[421894779,1778307033000,-248.45702955,0.00012938,2]
[421894780,1778307033000,-647.19022224,0.00012938,2]
[421894782,1778307033000,-61570.4573028,0.00012939,2]
[421894777,1778307033000,-500.0,0.00012938,2]
[421894781,1778307033000,-638.51383619,0.00012938,2]
[421894784,1778307033000,-10670.8473493,0.00012939,2]
[421894786,1778307033000,-500.0,0.00012973,2]
[421894783,1778307033000,-109478.5124494,0.00012939,2]
[421894788,1778307033000,-201.46,0.00012986,2]
[421894787,1778307033000,-500.0,0.00012973,2]
[421894789,1778307033000,-150.0,0.00012986,2]
[421894785,1778307033000,-2000.0,0.00012945,2]
[421894791,1778307033000,-721.98,0.00013141,2]
[421894790,1778307033000,-180.82,0.00013039,2]
[421894801,1778307033000,-1000.0,0.00013521,2]
[421894803,1778307033000,-500.0,0.00013698,2]
[421894802,1778307033000,-500.0,0.00013698,2]
[421894797,1778307033000,-151.0,0.00013471,2]
[421894798,1778307033000,-151.0,0.00013471,2]
[421894793,1778307033000,-200.0,0.00013471,2]
[421894800,1778307033000,-307.71477113,0.00013521,2]
[421894795,1778307033000,-151.0,0.00013471,2]
[421894796,1778307033000,-500.0,0.00013471,2]
[421894792,1778307033000,-255.0,0.00013289,2]
[421894794,1778307033000,-151.0,0.00013471,2]
[421894841,1778307034000,-3292.0,0.00015104,2]
[421894842,1778307034000,-3627.0,0.00015158,2]
[421894839,1778307034000,-969.0,0.00015,2]
[421894843,1778307034000,-6047.0,0.00015158,2]
[421894834,1778307034000,-208.0536425,0.00014916,2]
[421894840,1778307034000,-150.0,0.00015043,2]
[421894838,1778307034000,-155395.52713052,0.00015,2]
[421894835,1778307034000,-160.0,0.00014967,2]
[421894837,1778307034000,-204.9,0.00014996,2]
[421894848,1778307034000,-150.0,0.00015648,2]
[421894836,1778307034000,-214.73073128,0.00014967,2]
[421894855,1778307034000,-624.0,0.00015648,2]
[421894849,1778307034000,-150.127,0.00015648,2]
[421894846,1778307034000,-157.96,0.00015558,2]
[421894847,1778307034000,-174.093,0.00015648,2]
[421894858,1778307034000,-240.0,0.00015754,2]
[421894859,1778307034000,-107.39915889,0.00015781,2]
[421894856,1778307034000,-1269.0,0.00015648,2]
[421894851,1778307034000,-150.151,0.00015648,2]
[421894857,1778307034000,-1222.0,0.00015648,2]
[421894852,1778307034000,-3539.0,0.00015648,2]
[421894854,1778307034000,-925.0,0.00015648,2]
[421894853,1778307034000,-1352.0,0.00015648,2]
[421894845,1778307034000,-836.04,0.0001531,2]
[421894844,1778307034000,-13871.08,0.0001531,2]
[421894850,1778307034000,-150.0,0.00015648,2]
[421894873,1778307038000,-151.97565158,0.00016915,2]
[421894877,1778307038000,-150.0,0.00016915,2]
[421894880,1778307038000,-150.0,0.00016915,2]
[421894875,1778307038000,-150.0,0.00016915,2]
[421894883,1778307038000,-150.0,0.00017086,2]
[421894884,1778307038000,-500.0,0.0001709,2]
[421894876,1778307038000,-150.0,0.00016915,2]
[421894874,1778307038000,-150.0,0.00016915,2]
[421894872,1778307038000,-150.0,0.00016915,2]
[421894882,1778307038000,-533.0,0.00017,2]
[421894869,1778307038000,-2969.58,0.00016116,2]
[421894867,1778307038000,-2645.87311155,0.00016091,2]
[421894870,1778307038000,-1506.3,0.00016438,2]
[421894871,1778307038000,-421.0,0.00016615,2]
[421894866,1778307038000,-300.0,0.00016,2]
[421894862,1778307038000,-329.60084111,0.00015781,2]
[421894868,1778307038000,-150.99,0.00016116,2]
[421894865,1778307038000,-300.0,0.00015927,2]
[421894864,1778307038000,-800.0,0.000159,5]
[421894863,1778307038000,-2000.0,0.00015821,2]
[421894861,1778307038000,-5000.0,0.0001521,2]
[421894881,1778307038000,-157.96,0.00016972,2]
[421894890,1778307038000,-150.0,0.00017228,2]
[421894878,1778307038000,-150.0,0.00016915,2]
[421894879,1778307038000,-150.0,0.00016915,2]
[421894903,1778307038000,-150.0,0.00017542,2]
[421894905,1778307038000,-255.59345272,0.00017556,2]
[421894904,1778307038000,-150.0,0.00017542,2]
[421894902,1778307038000,-150.0,0.00017542,2]
[421894901,1778307038000,-170.82,0.00017441,2]
[421894899,1778307038000,-88.65845233,0.00017428,2]
[421894897,1778307038000,-141.87086932,0.00017385,2]
[421894898,1778307038000,-150.0,0.00017385,2]
[421894893,1778307038000,-150.0,0.00017257,2]
[421894900,1778307038000,-61.34154767,0.00017428,2]
[421894885,1778307038000,-500.0,0.0001709,2]
[421894894,1778307038000,-2000.0,0.0001726,2]
[421894895,1778307038000,-150.0,0.00017333,2]
[421894892,1778307038000,-3465.88569015,0.00017255,2]
[421894891,1778307038000,-150.0,0.00017228,2]
[421894889,1778307038000,-150.0,0.0001715,2]
[421894887,1778307038000,-611.522,0.0001709,2]
[421894886,1778307038000,-500.0,0.0001709,2]
[421894896,1778307038000,-8.12913068,0.00017385,2]
[421894888,1778307038000,-150.0,0.00017124,2]
[421894926,1778307041000,-150.0,0.00017855,2]
[421894921,1778307041000,-150.0,0.0001775,2]
[421894923,1778307041000,-150.0,0.00017855,2]
[421894922,1778307041000,-150.0,0.00017769,2]
[421894917,1778307041000,-108.29654728,0.00017556,2]
[421894929,1778307041000,-150.0,0.00017959,2]
[421894919,1778307041000,-150.0,0.0001762,2]
[421894920,1778307041000,-533.0,0.00017636,2]
[421894918,1778307041000,-150.0,0.00017599,2]
[421894927,1778307041000,-150.0,0.00017855,2]
[421894928,1778307041000,-150.0,0.0001794,2]
[421894925,1778307041000,-150.0,0.00017855,2]
[421894924,1778307041000,-150.0,0.00017855,2]
[421894938,1778307041000,-3294.72091392,0.00018158,2]
[421894931,1778307041000,-350.0,0.00018,2]
[421894932,1778307041000,-2645.87311155,0.00018063,2]
[421894937,1778307041000,-337.05962658,0.00018158,2]
[421894934,1778307041000,-150.0,0.00018111,2]
[421894936,1778307041000,-1466.72905459,0.00018158,2]
[421894935,1778307041000,-3627.0,0.00018158,2]
[421894930,1778307041000,-4612.0,0.00018,2]
[421894933,1778307041000,-150.0,0.0001809,2]
[421894990,1778307054000,-417.0,0.00015914,2]
[421894996,1778307089000,-533.0,0.00018273,3]
[421894992,1778307089000,-150.0,0.00018168,2]
[421894994,1778307089000,-150.0,0.00018168,2]
[421894995,1778307089000,-151.0,0.00018233,2]
[421894993,1778307089000,-150.0,0.00018168,2]
[421894997,1778307089000,-150.0,0.00018282,2]
[421894991,1778307089000,-948.49040491,0.00018158,2]
[421894998,1778307089000,-150.0,0.00018325,2]
[421895000,1778307089000,-150.0,0.00018377,2]
[421895001,1778307089000,-1057.2068853,0.0001841,2]
[421895002,1778307089000,-449.0931147,0.0001841,2]
[421895003,1778307089000,-157.0,0.00018449,5]
[421895004,1778307089000,-15.60004162,0.00018449,5]
[421894999,1778307089000,-150.0,0.00018325,2]
[421895020,1778307158000,-925.0,0.00018648,2]
[421895022,1778307158000,-1269.0,0.00018648,2]
[421895017,1778307158000,-150.0,0.00018648,2]
[421895027,1778307158000,-152.15910352,0.00018795,2]
[421895024,1778307158000,-658.4299404,0.000187,2]
[421895021,1778307158000,-624.0,0.00018648,2]
[421895018,1778307158000,-3539.0,0.00018648,2]
[421895023,1778307158000,-1222.0,0.00018648,2]
[421895019,1778307158000,-1352.0,0.00018648,2]
[421895016,1778307158000,-150.0,0.00018648,2]
[421895013,1778307158000,-150.0,0.0001856,2]
[421895014,1778307158000,-150.0,0.00018586,2]
[421895015,1778307158000,-150.0,0.00018624,2]
[421895010,1778307158000,-951.38650155,0.00018513,5]
[421895011,1778307158000,-461.61349845,0.00018513,5]
[421895008,1778307158000,-150.0,0.00018481,2]
[421895009,1778307158000,-150.0,0.00018481,2]
[421895012,1778307158000,-1195.0,0.00018513,5]
[421895007,1778307158000,-150.0,0.00018453,2]
[421895006,1778307158000,-155.0,0.00018449,5]
[421895005,1778307158000,-138.39995838,0.00018449,5]
[421895025,1778307158000,-158.74,0.00018792,2]
[421895038,1778307158000,-417.0,0.00018914,2]
[421895034,1778307158000,-116498.14287778,0.000188,2]
[421895028,1778307158000,-160.79290694,0.00018795,2]
[421895037,1778307158000,-533.0,0.00018909,3]
[421895048,1778307158000,-639.56,0.00019011,2]
[421895041,1778307158000,-10018.900713,0.00018974,2]
[421895050,1778307158000,-156.12,0.00019179,2]
[421895049,1778307158000,-5502.0,0.00019173,5]
[421895051,1778307158000,-3378.65,0.00019179,2]
[421895040,1778307158000,-11109.3621326,0.00018974,2]
[421895039,1778307158000,-323.88395499,0.00018971,2]
[421895046,1778307158000,-639.56,0.00019008,2]
[421895044,1778307158000,-5226.06647748,0.00019,2]
[421895042,1778307158000,-7051.9816249,0.00018974,2]
[421895043,1778307158000,-811.2951899,0.00018974,2]
[421895047,1778307158000,-478.87,0.00019011,2]
[421895031,1778307158000,-257.30809877,0.00018795,2]
[421895035,1778307158000,-168.91851372,0.000188,2]
[421895033,1778307158000,-150.0,0.00018795,2]
[421895032,1778307158000,-257.92311588,0.00018795,2]
[421895036,1778307158000,-684.72,0.000188,2]
[421895030,1778307158000,-165.7215198,0.00018795,2]
[421895029,1778307158000,-151.35139858,0.00018795,2]
[421895026,1778307158000,-160.51546821,0.00018795,2]
[421895045,1778307158000,-639.51,0.00019008,2]
[421895052,1778307159000,-156.97,0.00019179,2]
[421895053,1778307159000,-3261.97354267,0.00019179,2]
[421895054,1778307159000,-120.47645733,0.00019179,2]
[421895057,1778307159000,-297.89208284,0.0001919,7]
[421895055,1778307159000,-156.12,0.0001919,7]
[421895060,1778307159000,-300.0,0.00016475,2]
[421895058,1778307159000,-929.0,0.00015914,2]
[421895059,1778307159000,-19.49040491,0.0001919,7]
[421895061,1778307159000,-648.49040491,0.00017036,2]
[421895056,1778307159000,-2177.57078189,0.0001919,7]
[421895064,1778307160000,-138.39995838,0.00017036,2]
[421895063,1778307160000,-138.39995838,0.00017036,2]
[421895062,1778307160000,-948.49040491,0.00017036,2]
[421895066,1778307161000,-138.39995838,0.00017036,2]
[421895065,1778307161000,-138.39995838,0.00017036,2]
[421895067,1778307162000,-138.39995838,0.00017036,2]
[421895068,1778307163000,-138.39995838,0.00016475,2]
[421895069,1778307165000,237.98283229,0.00012938,2]
[421895070,1778307187000,184.0,0.00015,2]
[421895074,1778307515000,-62.01716771,0.00015109,2]
[421895075,1778307528000,-237.98283229,0.00015109,2]
[421895076,1778307668000,-151.0,0.00015109,2]
[421895080,1778307669000,-1.2680635,0.0001501,2]
[421895081,1778307669000,-149.7319365,0.00015109,2]
[421895079,1778307669000,-151.0,0.0001501,2]
[421895078,1778307669000,-151.0,0.00015109,2]
[421895077,1778307669000,-151.0,0.00015109,2]
[421895083,1778307670000,-149.7319365,0.00015109,2]
[421895085,1778307670000,-151.0,0.00015109,2]
[421895084,1778307670000,-151.0,0.00015109,2]
[421895082,1778307670000,-1.2680635,0.00015109,2]
[421895088,1778307671000,-31.7319365,0.00015109,2]
[421895086,1778307671000,-119.0,0.00015109,2]
[421895087,1778307671000,-0.2680635,0.00015109,2]
[421895089,1778307671000,-118.2680635,0.00015109,2]
[421895090,1778307671000,-32.7319365,0.00015109,2]
[421895091,1778307671000,-118.2680635,0.00015109,2]
[421895092,1778307671000,-32.7319365,0.00015109,2]
[421895095,1778307901000,883.28896916,0.00015,2]
[421895096,1778307902000,157.963873,0.00014935,2]
[421895097,1778307996000,-152.2680635,0.0001501,2]
[421895098,1778307996000,-54.63753695,0.00015071,2]
[421895100,1778308059000,500.0,0.00014898,2]
[421895101,1778308060000,500.0,0.00014898,2]
[421895102,1778308060000,500.0,0.00014898,2]
[421895103,1778308060000,611.522,0.00014898,2]
[421895124,1778308231000,-104.22120062,0.0001511,2]
[421895122,1778308231000,-151.0,0.0001511,2]
[421895125,1778308231000,-150.0,0.0001511,2]
[421895126,1778308231000,-280.33127735,0.0001511,2]
[421895123,1778308231000,-46.77879938,0.0001511,2]
[421895121,1778308231000,-151.0,0.0001511,2]
[421895114,1778308231000,-180.08178377,0.00015109,2]
[421895120,1778308231000,-51.67120062,0.0001511,2]
[421895119,1778308231000,-99.32879938,0.0001511,2]